Cogmind - Beta 13 @@@ ROGUE MODE // 2024.04.14 @ 15:26:31 Player: Exceptionally Mediocre Result: Destroyed by KV-B8O(R) with Subdweller Laser Performance ------------- Evolutions (0) 0 Regions Visited (3) 600 Robots Destroyed (38) 190 Value Destroyed (659) 659 Prototype IDs (0) 0 Alien Tech Used (0) 0 Bonus (149) 149 TOTAL SCORE: 1598 Bonus ------- Follower Combat Kills 149 Cogmind --------- Core Integrity 0/250 Matter 174/300 Energy 170/170 System Corruption 0% Temperature Cool (6) Movement Rolling (110) Ox2 Location -10/Subcaves Parts ------- > --- POWER (1) -------- Makeshift Power Source > --- PROPULSION (2) --- Wheel Wheel > --- UTILITY (2) ------ High-capacity Storage Unit Targeting Computer > --- WEAPON (2) ------- Heavy Assault Rifle Grenade Launcher > --- INVENTORY (20) --- Subdweller Power Source Light Nuclear Core Wheel Wheel Cooling System High-capacity Matter Pod (200) Signal Interpreter Utility Shielding Weapon Shielding Reflective Plating Scrap Shield Improved Trap Extractor (0/6) Particle Gun Pulse Rifle Beam Cannon Heavy Assault Rifle Heavy Assault Rifle Battle Cannon Mining Laser Peak State ------------ > --- POWER ------------ Light Ion Engine > --- PROPULSION ------- Wheel Wheel > --- UTILITY ---------- High-capacity Storage Unit Improved Trap Extractor > --- WEAPON ----------- Heavy Assault Rifle Heavy Assault Rifle > --- INVENTORY -------- Ion Engine Light Ion Engine Light Ion Engine Wheel Wheel Cooling System High-capacity Matter Pod Signal Interpreter Targeting Computer Utility Shielding Weapon Shielding Reflective Plating Hacking Suite Particle Gun Pulse Rifle Beam Cannon Heavy Assault Rifle Heavy Assault Rifle Grenade Launcher Mining Laser [Rating: 15] Favorites ----------- Power Ion Engine Engine Ion Engine Propulsion Wheel Wheel Wheel Utility High-capacity Storage Unit Device Improved Trap Extractor Storage High-capacity Storage Unit Processor Targeting Computer Protection Utility Shielding Weapon Heavy Assault Rifle Energy Gun Medium Laser Ballistic Gun Heavy Assault Rifle Launcher Grenade Launcher Special Weapon Mining Laser Build | -11 -10 -10 -10 ------- Run | Yrd Mat Min Sub Slots Evolved . | . . . . Power . | . . . . Propulsion . | . . . . Utility . | . . . . Weapon . | . . . . Parts Attached 32 | 6 13 9 4 Power 8 | 1 4 2 1 Engine 8 | 1 4 2 1 Core . | . . . . Reactor . | . . . . Propulsion 8 | 2 2 3 1 Treads . | . . . . Leg . | . . . . Wheel 8 | 2 2 3 1 Hover . | . . . . Flight . | . . . . Utility 5 | 1 2 1 1 Device 1 | . . 1 . Storage 2 | 1 1 . . Processor 1 | . . . 1 Hackware . | . . . . Protection 1 | . 1 . . Artifact . | . . . . Weapon 11 | 2 5 3 1 Energy Gun 2 | 1 1 . . Energy Cannon . | . . . . Ballistic Gun 6 | 1 3 2 . Ballistic Cannon . | . . . . Launcher 2 | . 1 . 1 Special Weapon 1 | . . 1 . Impact Weapon . | . . . . Slashing Weapon . | . . . . Piercing Weapon . | . . . . Special Melee Weapon . | . . . . Unidentified Prototypes . | . . . . Parts Lost 7 | . 2 4 1 Power 2 | . 1 1 . Propulsion 4 | . . 3 1 Utility . | . . . . Weapon 1 | . 1 . . Highest Loss Streak 3 | . 1 3 1 To Critical Strikes . | . . . . Average Slot Usage (%) 99 | . 97 99 100 Engine 14 | . 14 14 14 Wheel 27 | . 27 27 28 Device 3 | . . 6 2 Storage 14 | . 14 14 14 Processor 3 | . . . 11 Protection 6 | . 11 7 . Energy Gun 4 | . 14 . . Ballistic Gun 18 | . 13 27 14 Launcher 4 | . . . 14 Naked Turns . | . . . . Heaviest Build 54 | 14 49 54 54 Greatest Support 32 | 32 32 32 20 Greatest Overweight (x) 5 | 1 2 5 2 Average Overweight (x) 1 | . . 1 2 Largest Inventory Capacity 20 | 8 20 20 20 Average Capacity 18 | 7 15 20 20 Most Carried 20 | 8 20 20 20 Average Carried 16 | 3 11 19 19 Final Capacity 20 | 8 20 20 20 Final Carried 20 | 8 20 20 20 Class Distribution -------------------- 100% | Mutant Dominant Class ---------------- Mutant | -10/Materials Mutant | -10/Mines Mutant | -10/Subcaves Resources | -11 -10 -10 -10 ----------- Run | Yrd Mat Min Sub Matter Collected 998 | 305 369 273 51 Remotely . | . . . . Salvage Created 952 | 202 602 81 67 Parts 71 | 15 42 6 8 Haulers Intercepted 2 | . 2 . . Recyclers Shooed . | . . . . Parts Field Recycled . | . . . . Retrieved Matter . | . . . . Parts Self-Destructed 8 | . . . 8 Prevented . | . . . . Kills | -11 -10 -10 -10 ------- Run | Yrd Mat Min Sub Combat Hostiles Destroyed 20 | . 13 2 5 Guns 13 | . 10 2 1 AOE 7 | . 3 . 4 Classes Destroyed 10 | 3 6 . 1 Worker 3 | 2 . 1 . Builder 1 | . 1 . . Tunneler 6 | 5 . 1 . Hauler 2 | . 2 . . Recycler 2 | 1 1 . . Operator 2 | . 2 . . Watcher 2 | . 2 . . Swarmer 8 | . 5 1 2 Grunt 9 | . 8 1 . Subdweller 3 | . . . 3 Best Kill Streak 7 | 5 7 1 2 Combat Bots Only 6 | . 6 1 2 Max Kills in Single Turn 4 | 1 4 1 1 Gunslinging . | . . . . Exploded 3 | . 3 . 1 Melee . | . . . . Uniques/NPCs Destroyed . | . . . . Combat | -11 -10 -10 -10 -------- Run | Yrd Mat Min Sub Hostile Shots Fired 102 | . 62 23 17 Missed 23 | . 11 5 7 Damage Taken 1086 | . 572 279 235 Core 265 | . 168 12 85 Absorbed by Shields . | . . . . Redirected to Shielding 10 | . 10 . . Core Remaining (%) 100 | 100 . . . Volleys Fired 124 | 15 65 28 16 Largest 2 | 2 2 2 1 Hottest 100 | 70 70 100 30 Shots Fired 225 | 30 129 50 16 Gun 206 | 30 128 44 4 Cannon . | . . . . Launcher 13 | . 1 . 12 Special 6 | . . 6 . Kinetic 127 | 15 64 44 4 Thermal 85 | 15 64 6 . Explosive 13 | . 1 . 12 Electromagnetic . | . . . . Robot Hit Streak 10 | 5 10 10 6 Robot Miss Streak 5 | 1 5 4 1 Penetration Max . | . . . . Secondary Targets 1 | . 1 . . Max Gunslinging Chain 1 | . 1 . . Shots Hit Robots 133 | 20 79 27 7 Core Hits 66 | 9 37 8 12 Critical Kills . | . . . . Critical Parts Destroyed 2 | . 1 1 . Critical Strikes 6 | 2 3 1 . Burn 4 | 2 2 . . Destroy 2 | . 1 1 . Melee Attacks . | . . . . Impact . | . . . . Slashing . | . . . . Piercing . | . . . . Sneak Attacks . | . . . . Combat Hostiles . | . . . . Follow-up Attacks . | . . . . Damage Inflicted 2499 | 259 1116 429 695 Guns 1643 | 259 954 418 12 Cannons . | . . . . Explosions 845 | . 162 . 683 Melee . | . . . . Ramming 11 | . . 11 . Kinetic 913 | 109 374 418 12 Thermal 730 | 150 580 . . Explosive 845 | . 162 . 683 Electromagnetic . | . . . . Impact . | . . . . Slashing . | . . . . Piercing . | . . . . Highest Corruption . | . . . . Average Corruption . | . . . . Corruption Purged . | . . . . Corruption Blocked . | . . . . Overload Shots . | . . . . Overflow Damage . | . . . . Projectiles . | . . . . Explosions . | . . . . Melee . | . . . . Knockbacks . | . . . . Impact . | . . . . Kinetic . | . . . . Secondary . | . . . . Self-Inflicted Damage 71 | . . 5 66 Shots 4 | . . . 4 Rammed 1 | . . 1 . Targets Rammed 1 | . . 1 . Kicked . | . . . . Crushed . | . . . . Highest Temperature 189 | 27 189 40 . Average Temperature 44 | 9 56 15 . Received Heat Transfer 444 | . 288 117 39 Siege Activations . | . . . . Robots Corrupted . | . . . . Combat Hostiles . | . . . . Parts Fried 1 | . . 1 . Impact Corruptions . | . . . . Robots Melted . | . . . . Combat Hostiles . | . . . . Parts Melted 5 | 2 3 . . Heat Transferred 2442 | 592 1850 . . Parts Sabotaged . | . . . . Parts Stolen . | . . . . Parts Stripped . | . . . . Power Chain Reactions . | . . . . Alert | -11 -10 -10 -10 ------- Run | Yrd Mat Min Sub Peak Influence 370 | 40 370 317 . Initial 84 | . 26 84 . Average 147 | 16 170 147 . Maximum Alert Level 1 | . 1 1 . Low Security (%) 73 | 100 67 75 . Level 1 26 | . 32 24 . Level 2 . | . . . . Level 3 . | . . . . Level 4 . | . . . . Level 5 . | . . . . High Security . | . . . . Max Security . | . . . . Squads Dispatched 3 | . 3 . . Investigation 1 | . 1 . . Extermination . | . . . . Reinforcement 2 | . 2 . . Assault . | . . . . Garrison . | . . . . Intercept . | . . . . Searches Triggered . | . . . . Construction Impeded . | . . . . Haulers Reinforced . | . . . . Active Scanning Responses . | . . . . Cargo Convoy Interrupts . | . . . . Stealth | -11 -10 -10 -10 --------- Run | Yrd Mat Min Sub Distress Signals 2 | . 2 . . Communications Jammed . | . . . . Distress Signals . | . . . . Times Spotted 47 | . 26 12 9 Peak Tracking Total 7 | . 7 3 4 Tactical Retreats 5 | . 2 2 1 Traps | -11 -10 -10 -10 ------- Run | Yrd Mat Min Sub Traps Triggered 3 | . 3 . . Indirectly . | . . . . Trap Hack Attempts . | . . . . Triggered . | . . . . Disarmed . | . . . . Reprogrammed . | . . . . Reused . | . . . . Traps Extracted . | . . . . Installed . | . . . . Triggered 2 | . . 2 . Machines | -11 -10 -10 -10 ---------- Run | Yrd Mat Min Sub Machines Disabled 2 | . 1 1 . Max in Single Turn 1 | . 1 . . Machines Repaired . | . . . . Machines Dismantled . | . . . . Machines Sabotaged . | . . . . Overloaded Fab Kills . | . . . . Hacking | -11 -10 -10 -10 --------- Run | Yrd Mat Min Sub Machines Accessed 2 | . 1 1 . Terminals . | . . . . Fabricators . | . . . . Repair Stations . | . . . . Recycling Units 1 | . 1 . . Scanalyzers . | . . . . Garrison Access . | . . . . Total Hacks 5 | . 4 1 . Successful 1 | . . 1 . Failed 4 | . 4 . . Catastrophic . | . . . . Database Lockouts . | . . . . Manual . | . . . . Terminals . | . . . . Fabricators . | . . . . Repair Stations . | . . . . Recycling Units 4 | . 4 . . Scanalyzers . | . . . . Garrison Access . | . . . . Terminal Hacks 1 | . . 1 . Open Door 1 | . . 1 . Fabricator Hacks . | . . . . Repair Station Hacks . | . . . . Recycling Unit Hacks . | . . . . Scanalyzer . | . . . . Garrison Access Hacks . | . . . . Unauthorized Hacks . | . . . . Terminals . | . . . . Fabricators . | . . . . Repair Stations . | . . . . Recycling Units . | . . . . Scanalyzers . | . . . . Garrison Access . | . . . . Data Cores Recovered . | . . . . Used . | . . . . Hacking Detections 1 | . 1 . . Full Trace Events . | . . . . Feedback Events . | . . . . Feedback Blocked . | . . . . Robot Schematics Acquired . | . . . . Robots Built . | . . . . Authchips . | . . . . Time . | . . . . Total Robot Build Rating . | . . . . Part Schematics Acquired . | . . . . Parts Built . | . . . . Authchips . | . . . . Time . | . . . . Total Part Build Rating . | . . . . Parts Repaired . | . . . . Time . | . . . . Parts Recycled . | . . . . Recycled Matter . | . . . . Retrieved Matter . | . . . . Retrieved Components . | . . . . Parts Scanalyzed . | . . . . Part Schematics Acquired . | . . . . Parts Damaged . | . . . . Bothacking | -11 -10 -10 -10 ------------ Run | Yrd Mat Min Sub Used RIF Installer . | . . . . Robots Hacked . | . . . . Non-combat . | . . . . Combat . | . . . . Robot Hacks Applied . | . . . . Relay Couplers Released . | . . . . Fabnet Peak Effective % . | . . . . Robots Rewired . | . . . . Allies Hacked . | . . . . Hacks Repelled . | . . . . Allies | -11 -10 -10 -10 -------- Run | Yrd Mat Min Sub Total Allies 4 | . . 4 . Largest Group 3 | . . 3 3 Highest-Rated Group 40 | . . 40 40 Highest-Rated Ally 31 | . . 31 16 Total Orders . | . . . . Ally Attacks 41 | . . 29 12 Total Damage 446 | . . 338 108 Kills 7 | . . 6 1 Allies Corrupted . | . . . . Allies Melted . | . . . . Intel | -11 -10 -10 -10 ------- Run | Yrd Mat Min Sub Robot Analysis Total . | . . . . Derelict Logs Recovered 3 | . . 2 1 Drone Launches . | . . . . Drone Recoveries . | . . . . Exploration | -11 -10 -10 -10 ------------- Run | Yrd Mat Min Sub Turns Passed 3216 | 173 1026 1108 909 Spaces Moved 2420 | 113 696 838 773 Core 6 | 6 . . . Treads . | . . . . Legs . | . . . . Wheels 2414 | 107 696 838 773 Hover . | . . . . Flight . | . . . . Fastest Speed 50 | 50 100 110 110 Average Speed 109 | 97 109 111 110 Slowest Speed 155 | 100 130 155 110 Overloaded Moves . | . . . . Propulsion Burnouts . | . . . . Robots Hopped . | . . . . Cave-ins Triggered . | . . . . Exploration Rate (%) 66 | 5 96 101 62 Regions Visited 3 Branch Regions 2 Pre-discovered Areas 2 | . . . 2 Known Exits Taken . | . . . . Unknown Exits Taken 3 | 1 1 1 . Scrap Searched 3 | . . 3 . Spaces Dug . | . . . . Terrain Destroyed 69 | . 11 . 58 Melee . | . . . . Projectile . | . . . . AOE 69 | . 11 . 58 Terrain Rammed . | . . . . Walls Destroyed . | . . . . Machines Disabled . | . . . . Actions | -11 -10 -10 -10 --------- Run | Yrd Mat Min Sub Total 2756 | 145 835 956 820 Wait 113 | . 34 63 16 Move 2417 | 112 695 837 773 Hop . | . . . . Pick Up 45 | 10 19 11 5 Fast Attach 11 | 6 5 . . Attach 7 | . 2 4 1 Detach . | . . . . Swap 14 | . 6 5 3 Drop 24 | 2 9 7 6 Fire 124 | 15 65 28 16 Melee . | . . . . Ram 1 | . . 1 . Kick . | . . . . Crush . | . . . . Escape Stasis . | . . . . Rewire . | . . . . Trap . | . . . . Miscellaneous . | . . . . Route ------- -11/Scrapyard -10/Materials (discovered 5 exits: [*Mat x3] / *Min x2) -10/Mines (discovered 3 exits: [*Mat x2] / [*Sub]) -10/Subcaves History --------- Turn | Location | Event 10 | -11/Scrapyard | Discovered new exit (range 16) 174 | -11/Scrapyard | Entered Materials 301 | -10/Materials | Discovered new exit (range 3) 306 | -10/Materials | Discovered new exit (range 16) 318 | -10/Materials | Build established: Mutant 422 | -10/Materials | Discovered new exit (range 9) 720 | -10/Materials | Discovered new exit (range 11) 996 | -10/Materials | Core integrity fell below 50% 1099 | -10/Materials | Discovered new exit (range 4) 1200 | -10/Materials | Entered Mines 1203 | -10/Mines | Received a Mining Laser from a helpful Derelict 1335 | -10/Mines | Learned Materials terminal intel 1455 | -10/Mines | Discovered new exit (range 5) 1474 | -10/Mines | Lost 3 parts (1p2n) 1683 | -10/Mines | Assisted by bots powering up and referring to "LRC-V3" 1782 | -10/Mines | Met a Derelict who couldn't figure out how to use a Trap Extractor 1982 | -10/Mines | Discovered new exit (range 7) 2071 | -10/Mines | Learned location of 1 exit from Materials 2302 | -10/Mines | Discovered new exit (range 4) 2308 | -10/Mines | Entered Subcaves 2308 | -10/Subcaves | Accompanied by 3 allies 2384 | -10/Subcaves | Lost 3 allies 2387 | -10/Subcaves | Shifting Twisted Machinery released Sub. Power Source 2392 | -10/Subcaves | A swath of the cavern ceiling suddenly collapsed 2399 | -10/Subcaves | Shifting Twisted Machinery released Battle Cannon 2477 | -10/Subcaves | Ambushed by Subdwellers from Twisted Machinery 2540 | -10/Subcaves | Learned location of Storage (-9) 2590 | -10/Subcaves | Learned location of Zion (-6) 2590 | -10/Subcaves | Met a Zionite searching for "candidates" 2596 | -10/Subcaves | A swath of the cavern ceiling suddenly collapsed 2843 | -10/Subcaves | Core integrity fell below 20% 3196 | -10/Subcaves | Shifting Twisted Machinery released Scrap Shield 3217 | -10/Subcaves | Destroyed by KV-B8O(R) with Subdweller Laser Last Messages --------------- 02540_ Acquired derelict log, extracted data. World map updated: -9/Storage. 02545_ D8-URL(z): "She is not going to be happy we haven't found any suitable candidates yet." 02590_ D8-URL(z): "Hey you! It's really dangerous down here, I feel that you could die at any moment. For your health and safety might I suggest a trip to Zion?" World map updated: -6/Zion. A swath of the cavern ceiling suddenly collapses. 02846_ U4-YIN(R) destroyed. 02848_ The unstable cave ceiling collapses. 02850_ Q5-MD7(R) destroyed. 02898_ Dropped Ion Engine. 02907_ Subatomizers dissect the Cobbler Unit. 02958_ Subatomizers dissect the Ion Engine. Scrap Shield falls loose from the Twisted Machinery. Map ----- +----------------------------------------------------+ | ?????????????????????????????????? "? #????????? | | ?????????????????????????????????? " ?????????? | | ?????????????????????????????????? " #?????????? | | ????????????????????? "?????????? #?? #?????? | | ????????????????????" ?????????? ## ?????? | | ??????????????? ???"" ?????????? ????? | | ??????????????"""#??# ?????????# ????? | | ??????????????" " ?## ???????## ????? | | ??????????####"""#?# "#??????# ?????? | | ?????????## ??# "#??????# #???????? | | ?????????? ?## "#??##### #????????? | | ??????????? #?# "##?# #???????????? | | ?????????### #?# ""### #???????????? | | ?????????#"#" ???# ! ## #???????????? | | ?????????? #???## ### ##???????????? | | ??????????##" ##### # ## #????????????? | | ??????????# ## # ####? #??????????? | | ??????????# ##????? ##??????????? | | ?????????## RR ####??????? #???????????? | | ?????????# # ##?????????? ???????????? | | ?????????## ### #???????????#??????????? | | ?????????## ### #??????????????????????? | | ?????????# #?## ## #??????????????????????? | | ?????????## ##??##### #??????????????????????? | | ?????????# ###????# ##?????????????????????? | | ?????????# #????# @ ####??????????????????? | | ?????????# ## ##????# ## #??????????????????? | | ?????????## ## #?????#### #??????????????????? | | ?????????## # #????????### ##??????????????????? | | ?????????? ## #??????????####???????????????????? | | #####???### # #?????????????????????????????????? | | " ""#### ## ###???????????????????????????????? | | """""" ### ##??????????????????????????????? | | "" "" ## ##?????????????????????????????? | | """ " ## ### ##????????????????????????????? | | ???#" # #?#### #????????????????????????????? | | ???### ## ##???####????????????????????????????? | | ????# #" ##??????????????????????????????????? | | ????# #??????????????????????????????????? | | ????# # #??????????????????????????????????? | | ????# #" # #??????????????????????????????????? | | ????#####" #??????????????????????????????? ?? | | ????????# #??????????????????????????????# ?? | | ????????## #??????????????????????????????# ?? | | ?????????# ##?????????????????????????????? #? | | ?????????## ##??????????????????????????????# ## | | ??????????# #?????????????????????????????## # | | ?????????## #?????????????????????????????# # | | ????????## #????????????????????????????## # | | ????????# #????????????????????????????# # | +----------------------------------------------------+ Best States ------------- Heat Dissipation 25 Energy Generation 15 Energy Capacity 250 Matter Stores 300 Matter Capacity 300 Sight Range 16 Terrain Scan Density 10 Utility Shielding 33 Evasion (%) 40 Targeting Accuracy 5 Trap Extractor Capacity 6 Item Schematics ----------------- None Robot Schematics ------------------ None Fabricated ------------ Nothing Alien Tech Used ----------------- None Achievements -------------- None Challenges ------------ None Game ------ Seed TitaniumTiamatCanceller Manual? 0 Play Time 00:30:38 Cumulative 54.2 hours Start 2024.04.14 @ 14:55:43 End 2024.04.14 @ 15:26:31 Sessions 3 Manual Loads 0 Difficulty Rogue Special Mode None Game No. 62 Rogue 62 Adventurer 0 Explorer 0 Win Type - Total 0 Types 0/0/0/0/0/0/0/0/0 Lore% 17 Gallery% 37 Achievement% 28 Wizard Run 0 Options --------- Layout 1 ASCII 0 Keyboard 1 Movement Vi Keybinds 0 Fullscreen 1 Font 24/Smallcaps Map View 50x35 Zoom Use 0% Tactical HUD 1 Map Filters NONE Filters NONE Steam 1 RUN: e9b052e4-36f3-4a75-a497-b5e8f6c9ec23